fUSD/lending_fUSD_20240121
["ID","MTS","AMOUNT","RATE_DAILY","PERIOD"]
[312363032,1705833762484,-500.0,0.00041095,31]
[312363033,1705833762510,-500.0,0.00041095,31]
[312363034,1705833762534,-500.0,0.00041095,31]
[312363035,1705833762558,-500.0,0.00041095,31]
[312363036,1705833762582,-500.0,0.00041095,31]
[312363037,1705833762606,-500.0,0.00041095,31]
[312363038,1705833762630,-546.23202853,0.00041095,31]
[312363039,1705833762654,-500.0,0.00041095,31]
[312363040,1705833762678,-500.0,0.00041095,31]
[312363041,1705833762703,-500.0,0.00041095,31]
[312363042,1705833762731,-500.0,0.00041095,31]
[312363043,1705833762759,-500.0,0.00041095,31]
[312363044,1705833762784,-500.0,0.00041095,31]
[312363045,1705833762808,-500.0,0.00041095,31]
[312363046,1705833762832,-3697.46,0.00041095,31]
[312363047,1705833762855,-531.86810421,0.00041095,31]
[312363048,1705833762878,-500.0,0.00041095,31]
[312363049,1705833762903,-567.50237686,0.00041095,31]
[312363050,1705833762927,-500.0,0.00041095,31]
[312363051,1705833762950,-500.0,0.00041095,31]
[312363052,1705833762973,-961.99,0.00041095,31]
[312363053,1705833762997,-500.0,0.00041095,31]
[312363054,1705833763020,-535.65839505,0.00041095,31]
[312363055,1705833763045,-500.0,0.00041095,31]
[312363056,1705833763069,-3978.73,0.00041095,31]
[312363057,1705833763093,-500.0,0.00041095,31]
[312363058,1705833763116,-549.4,0.00041095,31]
[312363059,1705833763148,-523.026547,0.00041095,31]
[312363060,1705833763181,-500.0,0.00041095,31]
[312363061,1705833763210,-500.0,0.00041095,31]
[312363062,1705833763243,-500.0,0.00041095,31]
[312363063,1705833763274,-500.0,0.00041095,31]
[312363064,1705833763303,-500.0,0.00041095,31]
[312363065,1705833763333,-500.0,0.00041095,31]
[312363066,1705833763361,-500.0,0.00041095,31]
[312363067,1705833763393,-500.0,0.00041095,31]
[312363068,1705833763421,-500.0,0.00041095,31]
[312363069,1705833763452,-500.0,0.00041095,31]
[312363070,1705833763483,-505.3705226,0.00041095,31]
[312363071,1705833763513,-500.0,0.00041095,31]
[312363072,1705833763545,-500.0,0.00041095,31]
[312363073,1705833763578,-500.0,0.00041095,31]
[312363074,1705833763610,-500.0,0.00041095,31]
[312363075,1705833763638,-500.0,0.00041095,31]
[312363076,1705833763666,-804.2,0.00041095,31]
[312363077,1705833763695,-500.0,0.00041095,31]
[312363078,1705833763729,-587.48,0.00041095,31]
[312363079,1705833763754,-500.0,0.00041095,31]
[312363080,1705833763782,-500.0,0.00041095,31]
[312363081,1705833763812,-500.0,0.00041095,31]
[312363082,1705833763840,-500.0,0.00041095,31]
[312363083,1705833763869,-1352.11,0.00041095,31]
[312363084,1705833763898,-2100.69,0.00041095,31]
[312363085,1705833763927,-500.0,0.00041095,31]
[312363086,1705833763956,-562.07,0.00041095,31]
[312363087,1705833763984,-500.0,0.00041095,31]
[312363088,1705833764013,-310.19093176,0.00041095,31]
[312363089,1705833764041,-563.23013082,0.00041095,31]
[312363090,1705833764069,-500.0,0.00041095,31]
[312363091,1705833764097,-500.0,0.00041095,31]
[312363092,1705833764125,-527.38667938,0.00041095,31]
[312363093,1705833764152,-1049.96,0.00041095,31]
[312363094,1705833764179,-500.0,0.00041095,31]
[312363095,1705833764208,-611.52,0.00041095,31]
[312363096,1705833764235,-500.0,0.00041095,31]
[312363097,1705833764263,-525.38833023,0.00041095,31]
[312363098,1705833764290,-500.0,0.00041095,31]
[312363099,1705833764318,-500.0,0.00041095,31]
[312363100,1705833764345,-531.21167626,0.00041095,31]
[312363101,1705833764372,-760.64,0.00041095,31]
[312363102,1705833764401,-500.0,0.00041095,31]
[312363103,1705833764428,-500.0,0.00041095,31]
[312363104,1705833764454,-622.00556753,0.00041095,31]
[312363105,1705833764483,-500.0,0.00041095,31]
[312363106,1705833764510,-500.0,0.00041095,31]
[312363107,1705833764537,-4431.07,0.00041095,31]
[312363108,1705833764564,-1262.56,0.00041095,31]
[312363109,1705833764591,-500.0,0.00041095,31]
[312363110,1705833764617,-500.0,0.00041095,31]
[312363111,1705833764644,-491.56914089,0.00041095,31]
[312363112,1705833764671,-500.0,0.00041095,31]
[312363113,1705833764698,-599.19654663,0.00041095,31]
[312363114,1705833764729,-452.54,0.00041095,31]
[312363115,1705833764757,-500.0,0.00041095,31]
[312363116,1705833764783,-520.85,0.00041095,31]
[312363117,1705833764811,-625.52,0.00041095,31]
[312363118,1705833764836,-500.0,0.00041095,31]
[312363119,1705833764864,-500.0,0.00041095,31]
[312363120,1705833764891,-500.0,0.00041095,31]
[312363121,1705833764917,-500.0,0.00041095,31]
[312363122,1705833764943,-500.0,0.00041095,31]
[312363123,1705833764969,-500.0,0.00041095,31]
[312363124,1705833764995,-500.0,0.00041095,31]
[312363125,1705833765022,-500.0,0.00041095,31]
[312363126,1705833765050,-500.0,0.00041095,31]
[312363127,1705833765076,-500.0,0.00041095,31]
[312363128,1705833765104,-500.0,0.00041095,31]
[312363129,1705833765130,-500.0,0.00041095,31]
[312363130,1705833765434,-500.0,0.00041095,31]
[312363131,1705833765457,-500.0,0.00041095,31]
[312363132,1705833765480,-500.0,0.00041095,31]
[312363133,1705833765503,-500.0,0.00041095,31]
[312363134,1705833765527,-500.0,0.00041095,31]
[312363135,1705833765549,-500.0,0.00041095,31]
[312363136,1705833765572,-602.32543893,0.00041095,31]
[312363137,1705833765596,-461.69305793,0.00041095,31]
[312363138,1705833765619,-288.43276,0.00041095,31]
[312363139,1705833765642,-500.0,0.00041095,31]
[312363140,1705833765665,-526.28845528,0.00041095,31]
[312363141,1705833765687,-507.76620013,0.00041095,31]
[312363142,1705833765712,-500.0,0.00041095,31]
[312363143,1705833765736,-607.48,0.00041095,31]
[312363144,1705833765760,-688.87,0.00041095,31]
[312363145,1705833765784,-163.95500046,0.00041095,31]
[312363146,1705833765807,-500.0,0.00041095,31]
[312363147,1705833765832,-500.0,0.00041095,31]
[312363148,1705833765855,-514.11149271,0.00041095,31]
[312363149,1705833765878,-638.18831324,0.00041095,31]
[312363150,1705833765901,-500.0,0.00041095,31]
[312363151,1705833765923,-1548.26,0.00041095,31]
[312363152,1705833765946,-500.0,0.00041095,31]
[312363153,1705833765969,-500.0,0.00041095,31]
[312363154,1705833765992,-636.26,0.00041095,31]
[312363155,1705833766016,-500.0,0.00041095,31]
[312363156,1705833766039,-578.19,0.00041095,31]
[312363157,1705833766061,-500.0,0.00041095,31]
[312363158,1705833766084,-500.0,0.00041095,31]
[312363159,1705833766107,-537.43570357,0.00041095,31]
[312363160,1705833766130,-500.0,0.00041095,31]
[312363161,1705833766152,-200.56083399,0.00041095,31]
[312363162,1705833766175,-500.0,0.00041095,31]
[312363163,1705833766198,-500.0,0.00041095,31]
[312363164,1705833766222,-500.0,0.00041095,31]
[312363165,1705833766245,-500.0,0.00041095,31]
[312363166,1705833766269,-501.30079849,0.00041095,31]
[312363167,1705833766293,-500.0,0.00041095,31]
[312363168,1705833766316,-500.0,0.00041095,31]
[312363169,1705833766340,-500.0,0.00041095,31]
[312363170,1705833766364,-500.0,0.00041095,31]
[312363171,1705833766388,-585.67,0.00041095,31]
[312363172,1705833766412,-550.84087714,0.00041095,31]
[312363173,1705833766436,-547.04489371,0.00041095,31]
[312363174,1705833766460,-500.0,0.00041095,31]
[312363175,1705833766483,-500.0,0.00041095,31]
[312363176,1705833766507,-500.0,0.00041095,31]
[312363177,1705833766530,-500.0,0.00041095,31]
[312363178,1705833766553,-500.0,0.00041095,31]
[312363179,1705833766578,-500.0,0.00041095,31]
[312363180,1705833766601,-500.0,0.00041095,31]
[312363181,1705833766624,-500.0,0.00041095,31]
[312363182,1705833766648,-542.13595197,0.00041095,31]
[312363183,1705833766671,-500.0,0.00041095,31]
[312363184,1705833766693,-500.0,0.00041095,31]
[312363185,1705833766716,-500.0,0.00041095,31]
[312363186,1705833766741,-500.0,0.00041095,31]
[312363187,1705833766765,-157.85235874,0.00041095,31]
[312363188,1705833766789,-500.0,0.00041095,31]
[312363189,1705833766815,-500.0,0.00041095,31]
[312363190,1705833766837,-500.0,0.00041095,31]
[312363191,1705833766860,-500.0,0.00041095,31]
[312363192,1705833766883,-500.0,0.00041095,31]
[312363193,1705833766907,-541.04,0.00041095,31]
[312363194,1705833766931,-500.0,0.00041095,31]
[312363195,1705833766954,-500.0,0.00041095,31]
[312363196,1705833766978,-500.0,0.00041095,31]
[312363197,1705833767002,-556.79278917,0.00041095,31]
[312363198,1705833767026,-513.53613761,0.00041095,31]
[312363199,1705833767051,-285.95372435,0.00041095,31]
[312363200,1705833767073,-593.57255516,0.00041095,31]
[312363201,1705833767098,-1030.09,0.00041095,31]
[312363202,1705833767120,-500.0,0.00041095,31]
[312363203,1705833767143,-500.0,0.00041095,31]
[312363204,1705833767166,-500.0,0.00041095,31]
[312363205,1705833767191,-568.33404178,0.00041095,31]
[312363206,1705833767215,-500.0,0.00041095,31]
[312363207,1705833767238,-500.0,0.00041095,31]
[312363208,1705833767262,-500.0,0.00041095,31]
[312363209,1705833767286,-500.0,0.00041095,31]
[312363210,1705833767309,-500.0,0.00041095,31]
[312363211,1705833767334,-377.84621081,0.00041095,31]
[312363212,1705833767357,-500.0,0.00041095,31]
[312363213,1705833767382,-639.67532224,0.00041095,31]
[312363214,1705833767405,-534.34731201,0.00041095,31]
[312363215,1705833767428,-500.0,0.00041095,31]
[312363216,1705833767451,-555.26302622,0.00041095,31]
[312363217,1705833767475,-500.0,0.00041095,31]
[312363218,1705833767498,-500.0,0.00041095,31]
[312363219,1705833767520,-500.0,0.00041095,31]
[312363220,1705833767544,-847.58,0.00041095,31]
[312363221,1705833767566,-840.2,0.00041095,31]
[312363222,1705833767590,-500.0,0.00041095,31]
[312363223,1705833767613,-544.14615654,0.00041095,31]
[312363224,1705833767637,-743.86,0.00041095,31]
[312363225,1705833767659,-246.26566193,0.00041095,31]
[312363226,1705833767681,-554.78018906,0.00041095,31]
[312363227,1705833767705,-500.0,0.00041095,31]
[312363228,1705833767730,-500.0,0.00041095,31]
[312363229,1705833767754,-520.46853644,0.00041095,31]
[312363230,1705833767915,-500.0,0.00041095,31]
[312363231,1705833767939,-245.17138431,0.00041095,31]
[312363232,1705833767961,-500.0,0.00041095,31]
[312363233,1705833767985,-539.69815561,0.00041095,31]
[312363234,1705833768009,-518.19012752,0.00041095,31]
[312363235,1705833768033,-536.19938492,0.00041095,31]
[312363236,1705833768059,-500.0,0.00041095,31]
[312363237,1705833768083,-500.0,0.00041095,31]
[312363238,1705833768109,-2133.18,0.00041095,31]
[312363239,1705833768133,-1652.7,0.00041095,31]
[312363240,1705833768158,-2469.83,0.00041095,31]
[312363241,1705833768182,-500.0,0.00041095,31]
[312363242,1705833768207,-518.04315595,0.00041095,31]
[312363243,1705833768232,-500.0,0.00041095,31]
[312363244,1705833768256,-212.62609952,0.00041095,31]
[312363245,1705833768280,-152.21679674,0.00041095,31]
[312363246,1705833768306,-500.0,0.00041095,31]
[312363247,1705833768330,-500.0,0.00041095,31]
[312363248,1705833768354,-500.0,0.00041095,31]
[312363249,1705833768377,-500.0,0.00041095,31]
[312363250,1705833768401,-563.98395167,0.00041095,31]
[312363251,1705833768426,-500.0,0.00041095,31]
[312363252,1705833768449,-500.0,0.00041095,31]
[312363253,1705833768472,-516.29505298,0.00041095,31]
[312363254,1705833768495,-1048.25,0.00041095,31]
[312363255,1705833768521,-3287.59,0.00041095,31]
[312363256,1705833768544,-500.0,0.00041095,31]
[312363257,1705833768568,-500.0,0.00041095,31]
[312363258,1705833768591,-500.0,0.00041095,31]
[312363259,1705833768614,-500.0,0.00041095,31]
[312363260,1705833768641,-786.02,0.00041095,31]
[312363261,1705833768666,-500.0,0.00041095,31]
[312363262,1705833768689,-518.07823759,0.00041095,31]
[312363263,1705833768713,-500.0,0.00041095,31]
[312363264,1705833768736,-505.16874738,0.00041095,31]
[312363265,1705833768761,-536.29658229,0.00041095,31]
[312363266,1705833768785,-181.74292558,0.00041095,31]
[312363267,1705833768809,-442.75980266,0.00041095,31]
[312363268,1705833768832,-1697.74,0.00041095,31]
[312363269,1705833768855,-500.0,0.00041095,31]
[312363270,1705833768879,-543.66,0.00041095,31]
[312363271,1705833768905,-500.0,0.00041095,31]
[312363272,1705833768937,-500.0,0.00041095,31]
[312363273,1705833768968,-500.0,0.00041095,31]
[312363274,1705833768995,-644.2,0.00041095,31]
[312363275,1705833769020,-500.0,0.00041095,31]
[312363276,1705833769045,-500.0,0.00041095,31]
[312363277,1705833769070,-500.0,0.00041095,31]
[312363278,1705833769096,-500.0,0.00041095,31]
[312363279,1705833769122,-500.0,0.00041095,31]
[312363280,1705833769146,-500.0,0.00041095,31]
[312363281,1705833769172,-528.07219596,0.00041095,31]
[312363282,1705833769197,-500.0,0.00041095,31]
[312363283,1705833769221,-612.48,0.00041095,31]
[312363284,1705833769245,-500.0,0.00041095,31]
[312363285,1705833769271,-500.0,0.00041095,31]
[312363286,1705833769297,-500.0,0.00041095,31]
[312363287,1705833769322,-500.0,0.00041095,31]
[312363288,1705833769347,-500.0,0.00041095,31]
[312363289,1705833769372,-1625.29,0.00041095,31]
[312363290,1705833769397,-500.0,0.00041095,31]
[312363291,1705833769421,-162.0,0.00041096,30]
[312363292,1705833769444,-678.826,0.00041096,120]
[312363293,1705833769468,-3280.0,0.00041096,30]
[312363294,1705833769497,-13790.43784348,0.000411,60]
[312363295,1705833769525,-5445.0817861,0.000411,30]
[312363296,1705833769550,-808.18850116,0.000411,30]
[312363297,1705833769575,-350.0,0.00041178,120]
[312363298,1705833769599,-96624.0,0.00041238,30]
[312363299,1705833769623,-384.5309755,0.00041238,30]
[312363300,1705833769648,-1483.0,0.00041238,30]
[312363301,1705833769672,-363.0,0.00041238,30]
[312363302,1705833769765,-500.0,0.00041369,31]
[312363303,1705833769788,-151.16990691,0.00041369,31]
[312363304,1705833769811,-500.0,0.00041369,31]
[312363305,1705833769834,-500.0,0.00041369,31]
[312363306,1705833769857,-500.0,0.00041369,31]
[312363307,1705833769884,-500.0,0.00041369,31]
[312363308,1705833769907,-509.93310528,0.00041369,31]
[312363309,1705833769931,-500.0,0.00041369,31]
[312363310,1705833769955,-500.0,0.00041369,31]
[312363311,1705833769978,-530.45039127,0.00041369,31]
[312363312,1705833770002,-500.0,0.00041369,31]
[312363313,1705833770027,-500.0,0.00041369,31]
[312363314,1705833770050,-500.0,0.00041369,31]
[312363315,1705833770074,-500.0,0.00041369,31]
[312363316,1705833770097,-500.0,0.00041369,31]
[312363317,1705833770121,-500.0,0.00041369,31]
[312363318,1705833770144,-618.78,0.00041369,31]
[312363319,1705833770169,-520.32606544,0.00041369,31]
[312363320,1705833770193,-232.80388518,0.00041369,30]
[312363321,1705833770218,-519.80600025,0.00041369,31]
[312363322,1705833770241,-528.02627195,0.00041369,31]
[312363323,1705833770269,-488.47327104,0.00041369,31]
[312363324,1705833770294,-588.57431698,0.00041369,31]
[312363325,1705833770320,-369.65500807,0.00041369,31]
[312363326,1705833770345,-530.2892216,0.00041369,31]
[312363327,1705833770369,-500.0,0.00041369,31]
[312363328,1705833770395,-544.98069201,0.00041369,31]
[312363329,1705833770420,-500.0,0.00041369,31]
[312363330,1705833770444,-636.05568374,0.00041369,31]
[312363331,1705833770469,-500.0,0.00041369,31]
[312363332,1705833770494,-527.21683639,0.00041369,31]
[312363333,1705833770518,-500.0,0.00041369,31]
[312363334,1705833770542,-500.0,0.00041369,31]
[312363335,1705833770566,-500.0,0.00041369,31]
[312363336,1705833770590,-510.0,0.00041369,120]
[312363337,1705833770614,-800.0,0.00041369,30]
[312363338,1705833770638,-513.16712938,0.00041369,31]
[312363339,1705833770663,-500.0,0.00041369,31]
[312363340,1705833770688,-514.67120663,0.00041369,31]
[312363341,1705833770714,-515.09566981,0.00041369,31]
[312363342,1705833770739,-500.0,0.00041369,31]
[312363343,1705833770765,-500.0,0.00041369,31]
[312363344,1705833770789,-500.0,0.00041369,31]
[312363345,1705833770814,-518.29688667,0.00041369,31]
[312363346,1705833770840,-523.94548688,0.00041369,31]
[312363347,1705833770865,-522.06045522,0.00041369,31]
[312363348,1705833770891,-522.45258955,0.00041369,31]
[312363349,1705833770914,-513.29787306,0.00041369,31]
[312363350,1705833770939,-500.0,0.00041369,31]
[312363351,1705833770965,-523.52825074,0.00041369,31]
[312363352,1705833770989,-500.0,0.00041369,31]
[312363353,1705833771014,-500.0,0.00041369,31]
[312363354,1705833771039,-515.66823668,0.00041369,31]
[312363355,1705833771065,-500.0,0.00041369,31]
[312363356,1705833771090,-534.42121097,0.00041369,31]
[312363357,1705833771115,-526.59417042,0.00041369,31]
[312363358,1705833771141,-514.44829383,0.00041369,31]
[312363359,1705833771166,-584.16307431,0.00041369,31]
[312363360,1705833771191,-509.11102187,0.00041369,31]
[312363361,1705833771217,-500.0,0.00041369,31]
[312363362,1705833771243,-500.0,0.00041369,31]
[312363363,1705833771272,-500.0,0.00041369,31]
[312363364,1705833771296,-500.0,0.00041369,31]
[312363365,1705833771322,-500.0,0.00041369,31]
[312363366,1705833771346,-380.9495387,0.00041369,31]
[312363367,1705833771372,-521.84744496,0.00041369,31]
[312363368,1705833771396,-524.80959377,0.00041369,31]
[312363369,1705833771422,-184.66941375,0.00041369,31]
[312363370,1705833771447,-541.2843618,0.00041369,31]
[312363371,1705833771471,-500.0,0.00041369,31]
[312363372,1705833771497,-630.79729668,0.00041369,31]
[312363373,1705833771522,-528.75903824,0.00041369,31]
[312363374,1705833771547,-206.36420521,0.00041369,31]
[312363375,1705833771572,-500.0,0.00041369,31]
[312363376,1705833771599,-500.0,0.00041369,31]
[312363377,1705833771624,-513.41141725,0.00041369,31]
[312363378,1705833771648,-500.0,0.00041369,31]
[312363379,1705833771673,-500.0,0.00041369,31]
[312363380,1705833771697,-500.0,0.00041369,31]
[312363381,1705833771726,-500.0,0.00041369,31]
[312363382,1705833771751,-535.31657321,0.00041369,31]
[312363383,1705833771775,-500.0,0.00041369,31]
[312363384,1705833771801,-500.0,0.00041369,31]
[312363385,1705833771825,-500.0,0.00041369,31]
[312363386,1705833771850,-540.75203568,0.00041369,31]
[312363387,1705833771875,-175.31707181,0.00041369,31]
[312363388,1705833771899,-500.0,0.00041369,31]
[312363389,1705833771921,-514.69744504,0.00041369,31]
[312363390,1705833771946,-500.0,0.00041369,31]
[312363391,1705833771969,-500.0,0.00041369,31]
[312363392,1705833771993,-500.0,0.00041369,31]
[312363393,1705833772016,-175.7803595,0.00041369,31]
[312363394,1705833772039,-500.0,0.00041369,31]
[312363395,1705833772062,-522.44155153,0.00041369,31]
[312363396,1705833772087,-609.59070484,0.00041369,31]
[312363397,1705833772111,-500.0,0.00041369,31]
[312363398,1705833772135,-500.0,0.00041369,31]
[312363399,1705833772161,-500.0,0.00041369,31]
[312363400,1705833772187,-414.16,0.00041369,31]
[312363401,1705833772212,-607.61676782,0.00041369,31]
[312363402,1705833772236,-500.0,0.00041369,31]
[312363403,1705833772262,-500.0,0.00041369,31]
[312363404,1705833772286,-500.0,0.00041369,31]
[312363405,1705833772309,-500.0,0.00041369,31]
[312363406,1705833772334,-635.63028446,0.00041369,31]
[312363407,1705833772472,-500.0,0.00041369,31]
[312363408,1705833772498,-500.0,0.00041369,31]
[312363409,1705833772522,-500.0,0.00041369,31]
[312363410,1705833772546,-218.64228659,0.00041369,31]
[312363411,1705833772569,-500.0,0.00041369,31]
[312363412,1705833772592,-457.02453227,0.00041369,31]
[312363413,1705833772616,-500.0,0.00041369,31]
[312363414,1705833772640,-1710.77,0.00041369,31]
[312363415,1705833772665,-500.0,0.00041369,31]
[312363416,1705833772689,-500.0,0.00041369,31]
[312363417,1705833772715,-500.0,0.00041369,31]
[312363418,1705833772739,-500.0,0.00041369,31]
[312363419,1705833772763,-451.3889241,0.00041369,31]
[312363420,1705833772787,-500.0,0.00041369,31]
[312363421,1705833772810,-500.0,0.00041369,31]
[312363422,1705833772833,-618.32897822,0.00041369,31]
[312363423,1705833772856,-500.0,0.00041369,31]
[312363424,1705833772880,-500.0,0.00041369,31]
[312363425,1705833772903,-500.0,0.00041369,31]
[312363426,1705833772927,-250.0,0.00041369,31]
[312363427,1705833772950,-500.0,0.00041369,31]
[312363428,1705833772973,-500.0,0.00041369,31]
[312363429,1705833772996,-522.73846342,0.00041369,31]
[312363430,1705833773019,-500.0,0.00041369,31]
[312363431,1705833773042,-500.0,0.00041369,31]
[312363432,1705833773065,-500.0,0.00041369,31]
[312363433,1705833773089,-500.0,0.00041369,31]
[312363434,1705833773112,-535.30101765,0.00041369,31]
[312363435,1705833773136,-157.43985471,0.00041369,31]
[312363436,1705833773159,-500.0,0.00041369,31]
[312363437,1705833773183,-500.0,0.00041369,31]
[312363438,1705833773209,-500.0,0.00041369,31]
[312363439,1705833773233,-500.0,0.00041369,31]
[312363440,1705833773258,-500.0,0.00041369,31]
[312363441,1705833773282,-500.0,0.00041369,31]
[312363442,1705833773306,-743.27,0.00041369,31]
[312363443,1705833773330,-500.0,0.00041369,31]
[312363444,1705833773354,-500.0,0.00041369,31]
[312363445,1705833773378,-500.0,0.00041369,31]
[312363446,1705833773402,-218.37022271,0.00041369,31]
[312363447,1705833773425,-500.0,0.00041369,31]
[312363448,1705833773450,-500.0,0.00041369,31]
[312363449,1705833773473,-852.56,0.00041369,31]
[312363450,1705833773496,-430.99522604,0.00041369,31]
[312363451,1705833773520,-500.0,0.00041369,31]
[312363452,1705833773543,-500.0,0.00041369,31]
[312363453,1705833773568,-2351.31,0.00041369,31]
[312363454,1705833773592,-328.71914192,0.00041369,31]
[312363455,1705833773617,-500.0,0.00041369,31]
[312363456,1705833773640,-500.0,0.00041369,31]
[312363457,1705833773666,-251.42758311,0.00041369,31]
[312363458,1705833773693,-6061.09,0.00041369,31]
[312363459,1705833773718,-500.0,0.00041369,31]
[312363460,1705833773743,-500.0,0.00041369,31]
[312363461,1705833773769,-842.03,0.00041369,31]
[312363462,1705833773794,-550.80731812,0.00041369,31]
[312363463,1705833773818,-2114.52,0.00041369,31]
[312363464,1705833773843,-500.0,0.00041369,31]
[312363465,1705833773867,-500.0,0.00041369,31]
[312363466,1705833773892,-534.73067784,0.00041369,31]
[312363467,1705833773915,-500.0,0.00041369,31]
[312363468,1705833773941,-500.0,0.00041369,31]
[312363469,1705833773964,-500.0,0.00041369,31]
[312363470,1705833773989,-500.0,0.00041369,31]
[312363471,1705833774013,-500.0,0.00041369,31]
[312363472,1705833774038,-667.03,0.00041369,31]
[312363473,1705833774061,-500.0,0.00041369,31]
[312363474,1705833774084,-500.21,0.00041369,31]
[312363475,1705833774110,-619.17455749,0.00041369,31]
[312363476,1705833774135,-500.0,0.00041369,31]
[312363477,1705833774160,-536.32,0.00041369,31]
[312363478,1705833774185,-500.0,0.00041369,31]
[312363479,1705833774210,-500.0,0.00041369,31]
[312363480,1705833774433,-500.0,0.00041369,31]
[312363481,1705833774459,-373.39355227,0.00041369,31]
[312363482,1705833774483,-500.0,0.00041369,31]
[312363483,1705833774508,-500.0,0.00041369,31]
[312363484,1705833774532,-500.0,0.00041369,31]
[312363485,1705833774558,-285.38641884,0.00041369,31]
[312363486,1705833774582,-500.0,0.00041369,31]
[312363487,1705833774609,-295.79074117,0.00041369,31]
[312363488,1705833774633,-500.0,0.00041369,31]
[312363489,1705833774659,-500.0,0.00041369,31]
[312363490,1705833774684,-3697.46,0.00041369,31]
[312363491,1705833774712,-549.73892875,0.00041369,31]
[312363492,1705833774737,-500.0,0.00041369,31]
[312363493,1705833774762,-324.70380245,0.00041369,31]
[312363494,1705833774787,-500.0,0.00041369,31]
[312363495,1705833774812,-961.99,0.00041369,31]
[312363496,1705833774837,-208.63808502,0.00041369,31]
[312363497,1705833774861,-500.0,0.00041369,31]
[312363498,1705833774885,-3978.73,0.00041369,31]
[312363499,1705833774910,-500.0,0.00041369,31]
[312363500,1705833774934,-549.4,0.00041369,31]
[312363501,1705833774958,-500.0,0.00041369,31]
[312363502,1705833774982,-500.0,0.00041369,31]
[312363503,1705833775006,-500.0,0.00041369,31]
[312363504,1705833775031,-500.0,0.00041369,31]
[312363505,1705833775054,-500.0,0.00041369,31]
[312363506,1705833775078,-500.0,0.00041369,31]
[312363507,1705833775102,-500.0,0.00041369,31]
[312363508,1705833775126,-500.0,0.00041369,31]
[312363509,1705833775151,-500.0,0.00041369,31]
[312363510,1705833775186,-500.0,0.00041369,31]
[312363511,1705833775217,-500.0,0.00041369,31]
[312363512,1705833775245,-804.2,0.00041369,31]
[312363513,1705833775272,-500.0,0.00041369,31]
[312363514,1705833775299,-587.48,0.00041369,31]
[312363515,1705833775325,-500.0,0.00041369,31]
[312363516,1705833775352,-208.05474181,0.00041369,31]
[312363517,1705833775378,-287.97238488,0.00041369,31]
[312363518,1705833775404,-500.0,0.00041369,31]
[312363519,1705833775429,-1352.11,0.00041369,31]
[312363520,1705833775455,-2100.69,0.00041369,31]
[312363521,1705833775479,-343.82358679,0.00041369,31]
[312363522,1705833775504,-562.07,0.00041369,31]
[312363523,1705833775531,-500.0,0.00041369,31]
[312363524,1705833775557,-528.03301845,0.00041369,31]
[312363525,1705833775583,-500.0,0.00041369,31]
[312363526,1705833775610,-1049.96,0.00041369,31]
[312363527,1705833775635,-500.0,0.00041369,31]
[312363528,1705833775662,-611.52,0.00041369,31]
[312363529,1705833775687,-500.0,0.00041369,31]
[312363530,1705833775715,-500.0,0.00041369,31]
[312363531,1705833775741,-500.0,0.00041369,31]